Cogmind - Beta 10.2 @@@ ROGUE MODE // 2021.12.28 @ 19:56:48 Player: Jezoensis Result: Escaped! Performance ------------- Evolutions (9) 4500 Regions Visited (20) 4000 Robots Destroyed (118) 590 Value Destroyed (2603) 2603 Prototype IDs (48) 960 Alien Tech Used (1) 200 Bonus (4134) 4134 TOTAL SCORE: 16987 Bonus ------- High Alert Combat Kills 86 Follower Combat Kills 48 Entered Garrisons 200 Used RIF Installer 500 Aligned with FarCom 300 Win 3000 Cogmind --------- Core Integrity 1586/1600 Matter 250/300 Energy 323/350 System Corruption 1% Temperature Cool (24) Movement Hovering (38) Location To Epsilon Eridani Parts ------- > --- POWER (3) -------- Micro Fission Core Light Quantum Reactor Light Quantum Reactor > --- PROPULSION (5) --- Cooled Gravmag System Improved Linear Gravjet Combat Linear Gravjet Combat Linear Gravjet Combat Linear Gravjet > --- UTILITY (15) ----- Large Storage Unit Large Storage Unit Large Storage Unit Triangulator Spectral Analyzer Long-range Terrain Scanner Advanced Terrain Scan Processor Advanced Transmission Jammer Improved ECM Suite Reaction Control System Cloaking Device Experimental Utility Shielding Hacking Suite Advanced Hacking Suite System Shield > --- WEAPON (2) ------- Enhanced Nova Cannon Chainsword > --- INVENTORY (22) --- Micro Fission Core Light Quantum Reactor Combat Airjet Combat Airjet Cooled Gravmag System Improved Linear Gravjet Cooled Antigrav System Combat Linear Gravjet Matter Compressor (250) Advanced Terrain Scanner Microactuators Improved Stasis Canceller Improved Transmission Jammer Advanced Transmission Jammer Advanced ECM Suite Reaction Control System Improved Utility Shielding Trap Reconfigurator Micro-nuke Launcher Great Axe Centrium Greatsword Peak State ------------ > --- POWER ------------ Micro Fission Core Light Quantum Reactor Light Quantum Reactor > --- PROPULSION ------- Cooled Gravmag System Improved Linear Gravjet Combat Linear Gravjet Combat Linear Gravjet Combat Linear Gravjet > --- UTILITY ---------- Large Storage Unit Large Storage Unit Large Storage Unit Triangulator Spectral Analyzer Long-range Terrain Scanner Advanced Terrain Scan Processor Advanced Transmission Jammer Advanced ECM Suite Reaction Control System Cloaking Device Experimental Utility Shielding Hacking Suite Advanced Hacking Suite System Shield > --- WEAPON ----------- Centrium Greatsword > --- INVENTORY -------- Micro Fission Core Antimatter Reactor Combat Airjet Combat Airjet Cooled Gravmag System Cooled Antigrav System Combat Linear Gravjet Matter Compressor Advanced Terrain Scanner Microactuators Improved Stasis Canceller Improved Transmission Jammer Advanced Transmission Jammer Improved ECM Suite Reaction Control System Reaction Control System Improved Utility Shielding Trap Reconfigurator Neutron Cannon Micro-nuke Launcher Powered Hammer Great Axe [Rating: 161] Favorites ----------- Power Deuterium Engine Engine Deuterium Engine Power Core Micro Fission Core Reactor Antimatter Reactor Propulsion Light Treads Treads Light Treads Leg Improved Titanium Leg Hover Unit Cooled Gravmag System Utility Large Storage Unit Device Advanced Terrain Scanner Storage Large Storage Unit Processor Advanced Terrain Scan Processor Hackware System Shield Protection Experimental Utility Shielding Weapon Chainsword Energy Gun EM Pulse Gun Energy Cannon Neutron Cannon Ballistic Gun Autogun Launcher Rocket Launcher Special Weapon Mining Laser Slashing Weapon Chainsword Build | -11 -10 -10 -9 -9 -9 -8 -8 -8 -8 -7 -6 -5 -5 -5 -5 -4 -4 -3 -2 -1 ------- Run | Scr Mat Min Mat Min Exi Min Mat Gar Mat Fac Fac Fac Upp Upp Zhi Pro Fac Res Res Acc Slots Evolved 18 | . . . 2 . . . 2 . . 2 2 2 . . . . 2 2 2 2 Power 2 | . . . . . . . . . . . 1 . . . . . . 1 . . Propulsion 3 | . . . 1 . . . . . . 1 . . . . . . 1 . . . Utility 13 | . . . 1 . . . 2 . . 1 1 2 . . . . 1 1 2 2 Weapon . | . . . . . . . . . . . . . . . . . . . . . Parts Attached 337 | 7 16 7 34 7 1 6 11 5 48 34 26 7 5 2 7 9 40 25 25 15 Power 31 | 1 1 2 1 . 1 . . . 2 4 3 . . . 1 . 5 4 4 2 Engine 10 | 1 1 1 1 . 1 . . . 1 2 . . . . . . 1 1 . . Core 15 | . . 1 . . . . . . 1 2 3 . . . 1 . 2 3 1 1 Reactor 6 | . . . . . . . . . . . . . . . . . 2 . 3 1 Propulsion 54 | 2 2 . 6 . . . 2 . 6 14 7 1 . . 2 . 5 2 3 2 Treads 24 | 2 2 . 6 . . . 2 . 5 7 . . . . . . . . . . Leg 6 | . . . . . . . . . . 6 . . . . . . . . . . Wheel . | . . . . . . . . . . . . . . . . . . . . . Hover 24 | . . . . . . . . . 1 1 7 1 . . 2 . 5 2 3 2 Flight . | . . . . . . . . . . . . . . . . . . . . . Utility 156 | 2 2 1 11 4 . 4 4 2 21 8 14 6 5 2 4 9 22 12 17 6 Device 98 | 1 1 . 9 2 . 2 1 1 15 4 8 4 4 1 3 6 14 7 11 4 Storage 14 | 1 1 1 1 . . . 1 . 1 . 2 . . . . . 4 . 1 1 Processor 8 | . . . . . . . 1 . 1 1 . 1 . . . . . 2 2 . Hackware 5 | . . . . . . . . . 1 . 1 . . . . . 2 . 1 . Protection 31 | . . . 1 2 . 2 1 1 3 3 3 1 1 1 1 3 2 3 2 1 Artifact . | . . . . . . . . . . . . . . . . . . . . . Weapon 96 | 2 11 4 16 3 . 2 5 3 19 8 2 . . . . . 8 7 1 5 Energy Gun 27 | 1 3 2 9 2 . 1 3 1 5 . . . . . . . . . . . Energy Cannon 17 | . . . . . . . . . 3 4 . . . . . . 3 4 1 2 Ballistic Gun 12 | 1 4 . 2 . . . . . 3 2 . . . . . . . . . . Ballistic Cannon . | . . . . . . . . . . . . . . . . . . . . . Launcher 13 | . 2 1 2 1 . 1 1 1 4 . . . . . . . . . . . Special Weapon 6 | . 2 1 3 . . . . . . . . . . . . . . . . . Impact Weapon . | . . . . . . . . . . . . . . . . . . . . . Slashing Weapon 21 | . . . . . . . 1 1 4 2 2 . . . . . 5 3 . 3 Piercing Weapon . | . . . . . . . . . . . . . . . . . . . . . Special Melee Weapon . | . . . . . . . . . . . . . . . . . . . . . Unidentified Prototypes 14 | . . . 2 . . . . . 1 1 . 1 . . 4 . . 3 1 1 Parts Lost 6 | . . . 1 . . . . . 3 . . . . . . 1 . 1 . . Power 2 | . . . . . . . . . . . . . . . . 1 . 1 . . Propulsion 1 | . . . 1 . . . . . . . . . . . . . . . . . Utility 1 | . . . . . . . . . 1 . . . . . . . . . . . Weapon 2 | . . . . . . . . . 2 . . . . . . . . . . . Highest Loss Streak 2 | . . . 1 . . . . . 2 . . . . . . 1 . 1 . . Average Slot Usage (%) 99 | . 98 100 99 100 100 100 93 100 99 99 97 100 100 100 95 98 98 98 99 99 Engine 5 | . 14 13 11 11 11 11 9 9 7 6 . . . . . . . 1 . . Core 3 | . . . . . . . . . 1 . 12 11 11 11 11 9 7 6 7 4 Reactor 1 | . . . . . . . . . . . . . . . . . 2 3 4 7 Treads 15 | . 27 28 32 33 33 33 27 27 26 19 . . . . . . . . . . Leg 1 | . . . . . . . . . . 10 . . . . . . . . . . Hover 9 | . . . . . . . . . . . 25 23 23 23 23 23 25 23 21 19 Device 11 | . 13 12 9 9 11 9 7 6 6 6 9 11 12 16 12 13 17 17 15 23 Storage 19 | . 14 15 22 22 22 22 20 27 27 23 15 17 17 17 17 17 15 14 14 12 Processor 8 | . . . . . . . 9 9 9 14 13 12 17 17 17 17 11 9 11 8 Hackware 2 | . . . . . . . . . 1 . 5 5 3 . . . 6 9 10 12 Protection 1 | . . . . 2 . 1 1 2 . . 1 3 . . . 2 . . 3 4 Energy Gun 3 | . 13 11 9 11 11 8 8 5 3 . . . . . . . . . . . Energy Cannon 1 | . . . . . . . . . 1 2 . . . . . . . 1 4 3 Ballistic Gun 5 | . 13 14 11 11 11 11 9 9 9 6 . . . . . . . . . . Slashing Weapon 4 | . . . . . . . . 3 3 4 11 11 11 11 11 11 9 7 4 4 Naked Turns . | . . . . . . . . . . . . . . . . . . . . . Heaviest Build 111 | 12 26 37 48 46 48 49 56 58 61 62 66 69 70 70 65 72 87 94 109 111 Greatest Support 126 | 40 40 40 60 60 60 60 60 60 65 88 66 72 72 72 78 72 89 98 118 126 Greatest Overweight (x) 1 | . 1 . . . . . . . 1 1 1 . . . . . 1 . . . Average Overweight (x) . | . . . . . . . . . . . . . . . . . . . . . Largest Inventory Capacity 26 | 6 10 14 16 16 16 16 20 20 20 20 20 20 20 20 20 20 22 22 26 26 Average Capacity 18 | 5 9 10 15 16 16 16 17 20 20 20 16 20 20 20 20 20 20 22 23 22 Most Carried 26 | 4 10 12 16 16 16 16 20 20 20 20 20 20 20 20 20 20 22 22 26 25 Average Carried 17 | 2 8 10 15 16 15 16 16 20 19 19 15 19 19 19 19 20 19 21 23 21 Final Capacity 26 | 6 10 14 16 16 16 16 20 20 20 20 20 20 20 20 20 20 22 22 26 22 Final Carried 26 | 3 10 11 16 16 16 16 20 20 20 20 20 20 19 20 20 20 22 22 26 22 Class Distribution -------------------- 15% | Mutant 13% | Scavenger-Mutant 12% | Hacker-Ninja 12% | Hauler-Assassin 9% | Infiltrator-Ninja 9% | Hauler-Mutant 9% | Hauler-Skirmisher 7% | Hauler-Ninja 5% | Hauler-Scout Dominant Class ---------------- Mutant | -10/Materials Mutant | -10/Mines Scavenger-Mutant | -9/Materials Scavenger-Mutant | -9/Mines Mutant | -9/Exiles Skirmisher | -8/Mines Skirmisher | -8/Materials Hauler-Mutant | -8/Garrison Hauler-Mutant | -8/Materials Hauler-Assassin | -7/Factory Scout | -6/Factory Hauler-Mutant | -5/Factory Hauler-Scout | -5/Upper Caves Hauler-Ninja | -5/Upper Caves Hauler-Scout | -5/Zhirov Hauler-Ninja | -4/Proximity Caves Hacker-Ninja | -4/Factory Infiltrator-Ninja | -3/Research Hacker-Ninja | -2/Research Hacker-Ninja | -1/Access Resources | -11 -10 -10 -9 -9 -9 -8 -8 -8 -8 -7 -6 -5 -5 -5 -5 -4 -4 -3 -2 -1 ----------- Run | Scr Mat Min Mat Min Exi Min Mat Gar Mat Fac Fac Fac Upp Upp Zhi Pro Fac Res Res Acc Matter Collected 5332 | 269 327 15 590 282 10 108 117 28 730 510 445 80 22 38 130 12 382 599 162 476 Remotely 406 | . . . . . . . . . 406 . . . . . . . . . . . Salvage Created 4375 | 128 436 15 798 264 . 159 179 28 855 248 188 16 . . . . 382 548 . 131 Parts 266 | 11 34 8 52 13 . 8 11 3 57 18 4 2 . . . . 21 21 . 3 Haulers Intercepted 8 | . 1 . 5 . . . . . 1 . . . . . . . . 1 . . Recyclers Shooed 10 | 1 . 1 1 . . 1 1 . 2 . 1 . . . . . 1 . 1 . Parts Field Recycled . | . . . . . . . . . . . . . . . . . . . . . Retrieved Matter . | . . . . . . . . . . . . . . . . . . . . . Parts Self-Destructed . | . . . . . . . . . . . . . . . . . . . . . Prevented . | . . . . . . . . . . . . . . . . . . . . . Kills | -11 -10 -10 -9 -9 -9 -8 -8 -8 -8 -7 -6 -5 -5 -5 -5 -4 -4 -3 -2 -1 ------- Run | Scr Mat Min Mat Min Exi Min Mat Gar Mat Fac Fac Fac Upp Upp Zhi Pro Fac Res Res Acc Combat Hostiles Destroyed 73 | . 10 3 14 7 . 6 4 4 21 2 1 . . . . . . 1 . . Melee 2 | . . . . . . . . . . . 1 . . . . . . 1 . . Guns 32 | . 5 . 9 4 . . 2 . 12 . . . . . . . . . . . Cannons 3 | . . . . . . . . . 1 2 . . . . . . . . . . AOE 36 | . 5 3 5 3 . 6 2 4 8 . . . . . . . . . . . Classes Destroyed 13 | 2 4 . 4 1 . . . . 1 . . . . . . . 1 . . . Worker 7 | . . . 2 . . . . . . . . . . . . . 2 3 . . Builder 5 | . . . . . . . . . 1 . . 1 . . . . 2 1 . . Tunneler 5 | 3 . . . . . . . . 1 . . . . . . . 1 . . . Hauler 8 | . 1 . 5 . . . . . 1 . . . . . . . . 1 . . Recycler 12 | 1 1 . . 1 . 1 . . 1 1 1 . . . . . 2 2 . 1 Mechanic 1 | . . . . . . . . . . . . . . . . . 1 . . . Operator 3 | . 2 . . . . . . . 1 . . . . . . . . . . . Watcher 4 | . . . 2 . . . . . . 1 . . . . . . . 1 . . Swarmer 29 | . 3 3 3 4 . 4 . 4 8 . . . . . . . . . . . Grunt 27 | . 7 . 6 2 . 2 3 . 6 . . . . . . . . 1 . . Brawler 2 | . . . 1 . . . . . 1 . . . . . . . . . . . Duelist 1 | . . . . 1 . . . . . . . . . . . . . . . . Sentry 14 | . . . 4 . . . 1 . 6 2 1 . . . . . . . . . Best Kill Streak 7 | 4 5 3 6 4 . 7 4 4 7 1 1 1 . . . . 2 4 . 1 Combat Bots Only 6 | . 3 3 4 4 . 6 4 4 5 1 1 . . . . . . 1 . . Max Kills in Single Turn 4 | 1 3 3 2 3 . 4 2 4 2 1 1 1 . . . . 1 1 . 1 Gunslinging . | . . . . . . . . . . . . . . . . . . . . . Exploded 4 | . 2 3 2 3 . 4 2 4 2 . . . . . . . . . . . Melee 1 | . . . . . . . . . . . 1 . . . . . . 1 . . Uniques/NPCs Destroyed . | . . . . . . . . . . . . . . . . . . . . . Combat | -11 -10 -10 -9 -9 -9 -8 -8 -8 -8 -7 -6 -5 -5 -5 -5 -4 -4 -3 -2 -1 -------- Run | Scr Mat Min Mat Min Exi Min Mat Gar Mat Fac Fac Fac Upp Upp Zhi Pro Fac Res Res Acc Damage Taken 4080 | 32 342 42 259 220 . 35 75 . 1098 347 172 45 147 102 . 557 181 209 85 132 Core 555 | 32 31 8 18 31 . . . . 68 60 27 . 26 27 . 160 . 23 30 14 Absorbed by Shields . | . . . . . . . . . . . . . . . . . . . . . Core Remaining (%) 90 | 87 . 71 . . . 87 . . 87 91 96 . . . . 78 100 98 97 99 Volleys Fired 263 | 8 36 2 48 11 . 5 6 2 62 8 . . . . . . 13 12 14 36 Largest 2 | 2 2 1 2 2 . 2 2 2 2 2 . . . . . . 1 1 1 1 Hottest 120 | 60 100 100 100 79 . 68 68 59 86 97 . . . . . . 105 90 90 120 Shots Fired 418 | 16 67 2 84 21 . 6 12 3 116 16 . . . . . . 13 12 14 36 Gun 295 | 16 62 . 72 20 . 2 11 2 102 8 . . . . . . . . . . Cannon 89 | . . . . . . . . . 6 8 . . . . . . 13 12 14 36 Launcher 25 | . 4 1 5 1 . 4 1 1 8 . . . . . . . . . . . Special 9 | . 1 1 7 . . . . . . . . . . . . . . . . . Kinetic 163 | 8 31 . 36 10 . 1 6 1 62 8 . . . . . . . . . . Thermal 132 | . 1 1 38 1 . . . 1 15 . . . . . . . 13 12 14 36 Explosive 25 | . 4 1 5 1 . 4 1 1 8 . . . . . . . . . . . Electromagnetic 98 | 8 31 . 5 9 . 1 5 . 31 8 . . . . . . . . . . Robot Hit Streak 17 | 7 11 . 17 13 . 5 14 . 10 16 . . . . . . . . 1 . Robot Miss Streak 4 | 1 3 . 3 4 . 1 2 . 3 . . . . . . . . 1 1 . Penetration Max . | . . . . . . . . . . . . . . . . . . . . . Secondary Targets 5 | . . . . . . . . . 5 . . . . . . . . . . . Max Gunslinging Chain 1 | . . . . . . . . . 1 . . . . . . . . . . . Shots Hit Robots 283 | 13 36 . 46 15 . 4 9 . 83 17 20 1 . . . . 15 22 1 1 Core Hits 164 | 5 24 4 32 12 . 8 9 4 38 7 3 1 . . . . 7 9 . 1 Critical Hits 6 | . 1 . 1 1 . . . . 1 . . . . . . . . 2 . . Critical Kills 3 | . . . . 1 . . . . 1 . . . . . . . . 1 . . Critical Parts Destroyed 2 | . 1 . . . . . . . . . . . . . . . . 1 . . Melee Attacks 156 | . . . . . . . 2 1 16 17 28 5 5 . . . 45 34 . 3 Impact . | . . . . . . . . . . . . . . . . . . . . . Slashing 156 | . . . . . . . 2 1 16 17 28 5 5 . . . 45 34 . 3 Piercing . | . . . . . . . . . . . . . . . . . . . . . Sneak Attacks 30 | . . . . . . . . . 1 2 1 1 . . . . 13 11 . 1 Combat Hostiles . | . . . . . . . . . . . . . . . . . . . . . Follow-up Attacks 9 | . . . . . . . . . . . 3 . . . . . 2 4 . . Damage Inflicted 11122 | 235 763 130 1199 468 . 622 285 262 2226 574 834 133 . . . . 1483 1741 40 127 Guns 3019 | 169 439 . 757 288 . 40 120 . 1102 104 . . . . . . . . . . Cannons 368 | . . . . . . . . . 105 184 . . . . . . . 39 40 . Explosions 2961 | 66 323 116 424 169 . 582 165 262 854 . . . . . . . . . . . Melee 4728 | . . . . . . . . . 165 284 834 133 . . . . 1483 1702 . 127 Ramming 46 | . 1 14 18 11 . . . . . 2 . . . . . . . . . . Kinetic 1399 | 79 165 . 279 100 . 17 43 . 612 104 . . . . . . . . . . Thermal 852 | 66 25 . 385 18 . . . . 279 . . . . . . . . 39 40 . Explosive 2758 | . 298 116 424 169 . 582 165 262 742 . . . . . . . . . . . Electromagnetic 1339 | 90 274 . 93 170 . 23 77 . 428 184 . . . . . . . . . . Impact . | . . . . . . . . . . . . . . . . . . . . . Slashing 4728 | . . . . . . . . . 165 284 834 133 . . . . 1483 1702 . 127 Piercing . | . . . . . . . . . . . . . . . . . . . . . Highest Corruption 4 | . . . . . . . . . . 4 . . . . . . . 4 . 1 Average Corruption 3 | . . . . . . . . . . 3 . . . . . . . 4 . 1 Corruption Purged . | . . . . . . . . . . . . . . . . . . . . . Effects 13 | . . . . . . . . . . 12 . . . . . . . 1 . . Message Errors 5 | . . . . . . . . . . 5 . . . . . . . . . . Matter Fused 3 | . . . . . . . . . . 3 . . . . . . . . . . Heat Flow Errors 1 | . . . . . . . . . . 1 . . . . . . . . . . Energy Discharges 3 | . . . . . . . . . . 3 . . . . . . . . . . Targeting Errors 1 | . . . . . . . . . . . . . . . . . . 1 . . Overload Shots . | . . . . . . . . . . . . . . . . . . . . . Overflow Damage 1154 | 6 . 1 17 20 . 37 . . 14 81 97 . . . . . 480 401 . . Projectiles . | . . . . . . . . . . . . . . . . . . . . . Explosions 95 | 6 . 1 17 20 . 37 . . 14 . . . . . . . . . . . Melee 1059 | . . . . . . . . . . 81 97 . . . . . 480 401 . . Knockbacks . | . . . . . . . . . . . . . . . . . . . . . Impact . | . . . . . . . . . . . . . . . . . . . . . Kinetic . | . . . . . . . . . . . . . . . . . . . . . Secondary . | . . . . . . . . . . . . . . . . . . . . . Self-Inflicted Damage 53 | 32 . . . 21 . . . . . . . . . . . . . . . . Shots 2 | 1 . . . 1 . . . . . . . . . . . . . . . . Rammed 8 | . 1 2 2 2 . . . . . 1 . . . . . . . . . . Targets Rammed 8 | . 1 2 2 2 . . . . . 1 . . . . . . . . . . Kicked . | . . . . . . . . . . . . . . . . . . . . . Crushed . | . . . . . . . . . . . . . . . . . . . . . Highest Temperature 438 | 32 60 20 90 155 . 24 59 6 241 193 . . . . . . 42 438 28 156 Average Temperature 52 | 30 30 10 21 74 . 11 19 4 91 67 . . . . . . 20 73 7 55 Received Heat Transfer 1059 | . 168 9 105 30 . 18 45 . 369 108 . 9 36 18 . 30 60 36 18 . Siege Activations . | . . . . . . . . . . . . . . . . . . . . . Robots Corrupted . | . . . . . . . . . . . . . . . . . . . . . Combat Hostiles . | . . . . . . . . . . . . . . . . . . . . . Parts Fried 2 | . . . . 1 . . . . . 1 . . . . . . . . . . Impact Corruptions . | . . . . . . . . . . . . . . . . . . . . . Robots Melted . | . . . . . . . . . . . . . . . . . . . . . Combat Hostiles . | . . . . . . . . . . . . . . . . . . . . . Parts Melted 1 | . . . . . . . . . 1 . . . . . . . . . . . Heat Transferred 1508 | 100 . . 851 37 . . . . 470 . . . . . . . . 25 25 . Parts Sabotaged . | . . . . . . . . . . . . . . . . . . . . . Parts Stolen . | . . . . . . . . . . . . . . . . . . . . . Parts Stripped . | . . . . . . . . . . . . . . . . . . . . . Power Chain Reactions 5 | 2 1 . . . . . . . 2 . . . . . . . . . . . Missiles Intercepted . | . . . . . . . . . . . . . . . . . . . . . Alert | -11 -10 -10 -9 -9 -9 -8 -8 -8 -8 -7 -6 -5 -5 -5 -5 -4 -4 -3 -2 -1 ------- Run | Scr Mat Min Mat Min Exi Min Mat Gar Mat Fac Fac Fac Upp Upp Zhi Pro Fac Res Res Acc Peak Influence 853 | 20 255 140 352 331 . 202 198 208 645 176 160 90 . . . . 853 693 484 488 Initial 447 | . 13 70 54 136 . . 78 128 101 98 24 29 . . . . 172 447 298 189 Average 237 | 8 154 121 176 307 . 99 129 194 312 66 91 44 . . . . 447 546 355 306 Maximum Alert Level 3 | . 1 . 1 1 . 1 . 1 2 . . . . . . . 3 2 2 2 Low Security (%) 51 | 100 79 100 65 1 . 82 100 17 15 100 100 100 . . . . 14 . . 13 Level 1 32 | . 20 . 34 98 . 17 . 82 65 . . . . . . . 35 . 91 73 Level 2 13 | . . . . . . . . . 18 . . . . . . . 31 100 8 12 Level 3 2 | . . . . . . . . . . . . . . . . . 18 . . . Level 4 . | . . . . . . . . . . . . . . . . . . . . . Level 5 . | . . . . . . . . . . . . . . . . . . . . . High Security . | . . . . . . . . . . . . . . . . . . . . . Max Security . | . . . . . . . . . . . . . . . . . . . . . Squads Dispatched 25 | . 4 . 3 . . 1 . . 3 . . . . 1 . 1 5 2 1 4 Investigation 7 | . 2 . 1 . . . . . . . . . . . . . 2 1 . 1 Extermination 4 | . . . . . . . . . . . . . . . . . 1 . 1 2 Reinforcement 10 | . 2 . 2 . . 1 . . 3 . . . . . . . . 1 . 1 Assault 4 | . . . . . . . . . . . . . . 1 . 1 2 . . . Garrison . | . . . . . . . . . . . . . . . . . . . . . Intercept . | . . . . . . . . . . . . . . . . . . . . . Construction Impeded 1 | . . . . . . 1 . . . . . . . . . . . . . . Haulers Reinforced . | . . . . . . . . . . . . . . . . . . . . . Stealth | -11 -10 -10 -9 -9 -9 -8 -8 -8 -8 -7 -6 -5 -5 -5 -5 -4 -4 -3 -2 -1 --------- Run | Scr Mat Min Mat Min Exi Min Mat Gar Mat Fac Fac Fac Upp Upp Zhi Pro Fac Res Res Acc Distress Signals 8 | . . . 2 . . 1 . . 2 . . . . . . . . 2 1 . Communications Jammed 18 | . . . . . . . . . . . . . . . . . 9 6 . 3 Distress Signals 18 | . . . . . . . . . . . . . . . . . 9 6 . 3 Times Spotted 191 | . 16 6 21 8 . 4 4 . 30 4 6 1 9 8 . 17 19 15 11 12 Peak Tracking Total 11 | . 4 3 6 4 . 4 4 . 6 1 3 1 5 11 . 9 4 2 5 3 Tactical Retreats 30 | . 1 . . . . 1 . . 1 . 1 . 4 3 . 6 6 3 1 3 Traps | -11 -10 -10 -9 -9 -9 -8 -8 -8 -8 -7 -6 -5 -5 -5 -5 -4 -4 -3 -2 -1 ------- Run | Scr Mat Min Mat Min Exi Min Mat Gar Mat Fac Fac Fac Upp Upp Zhi Pro Fac Res Res Acc Traps Triggered 8 | . 2 . 1 . . . . . . 3 . . . . . . 1 . . 1 Indirectly . | . . . . . . . . . . . . . . . . . . . . . Trap Hack Attempts . | . . . . . . . . . . . . . . . . . . . . . Triggered . | . . . . . . . . . . . . . . . . . . . . . Disarmed . | . . . . . . . . . . . . . . . . . . . . . Reprogrammed . | . . . . . . . . . . . . . . . . . . . . . Reused 1 | . . . . . . . . . . . 1 . . . . . . . . . Traps Reconfigurated 53 | . . . . . . . . . 2 12 28 11 . . . . . . . . Traps Extracted . | . . . . . . . . . . . . . . . . . . . . . Installed . | . . . . . . . . . . . . . . . . . . . . . Triggered 2 | . . . . . . . . . . . 1 . . . . 1 . . . . Machines | -11 -10 -10 -9 -9 -9 -8 -8 -8 -8 -7 -6 -5 -5 -5 -5 -4 -4 -3 -2 -1 ---------- Run | Scr Mat Min Mat Min Exi Min Mat Gar Mat Fac Fac Fac Upp Upp Zhi Pro Fac Res Res Acc Machines Disabled 6 | . 1 . 1 2 . 1 . . 1 . . . . . . . . . . . Max in Single Turn 2 | . 1 . 1 2 . 1 . . 1 . . . . . . . . . . . Garrison Access 11 | . . . . . . . . . . 2 2 . . . . . 2 2 1 2 Machines Sabotaged . | . . . . . . . . . . . . . . . . . . . . . Garrisons Compromised . | . . . . . . . . . . . . . . . . . . . . . Overloaded Fab Kills . | . . . . . . . . . . . . . . . . . . . . . Fab Network Shutdowns 1 | . . . . . . . . . . . . . . . . . 1 . . . Hacking | -11 -10 -10 -9 -9 -9 -8 -8 -8 -8 -7 -6 -5 -5 -5 -5 -4 -4 -3 -2 -1 --------- Run | Scr Mat Min Mat Min Exi Min Mat Gar Mat Fac Fac Fac Upp Upp Zhi Pro Fac Res Res Acc Machines Accessed 76 | . 7 . 6 . 1 . 2 . 4 16 8 . . 1 4 . 9 8 3 7 Terminals 44 | . 5 . 5 . . . . . 4 12 4 . . . . . 4 5 1 4 Fabricators 7 | . . . . . . . . . . 1 1 . . . . . 2 1 1 1 Repair Stations 1 | . . . 1 . . . . . . . . . . . . . . . . . Recycling Units 6 | . 2 . . . . . 1 . . 1 1 . . . . . 1 . . . Scanalyzers . | . . . . . . . . . . . . . . . . . . . . . Garrison Access 12 | . . . . . . . 1 . . 2 2 . . . . . 2 2 1 2 Total Hacks 202 | . 17 . 24 . 1 . 3 . 19 32 15 . . 1 17 . 29 20 12 12 Successful 115 | . 10 . 15 . 1 . 2 . 12 12 12 . . 1 17 . 12 8 7 6 Failed 86 | . 7 . 8 . . . 1 . 7 20 3 . . . . . 17 12 5 6 Catastrophic 8 | . 1 . . . . . . . . 2 . . . . . . 4 . 1 . Database Lockouts 1 | . . . 1 . . . . . . . . . . . . . . . . . Manual 120 | . 14 . 15 . 1 . 1 . 16 16 8 . . . . . 20 15 5 9 Terminals 134 | . 14 . 22 . . . . . 19 27 10 . . . . . 13 15 6 8 Fabricators 27 | . . . . . . . . . . 2 2 . . . . . 13 3 5 2 Repair Stations 2 | . . . 2 . . . . . . . . . . . . . . . . . Recycling Units 7 | . 3 . . . . . 1 . . 1 1 . . . . . 1 . . . Scanalyzers . | . . . . . . . . . . . . . . . . . . . . . Garrison Access 13 | . . . . . . . 2 . . 2 2 . . . . . 2 2 1 2 Terminal Hacks 51 | . 3 . 7 . 1 . . . 8 4 5 . . 1 17 . . 3 1 1 Record 5 | . . . . . . . . . . . . . . . 5 . . . . . Part Schematic 8 | . . . 1 . . . . . 1 . 1 . . . 4 . . 1 . . Robot Analysis 9 | . . . 2 . . . . . 3 . . . . . 4 . . . . . Prototype ID Bank 5 | . . . . . . . . . . 1 . . . . 4 . . . . . Open Door 2 | . . . . . . . . . . . . . . 1 . . . . . 1 Level Access Points 2 | . . . . . . . . . . . . . . . . . . 1 1 . Branch Access Points 4 | . 1 . . . . . . . 1 1 1 . . . . . . . . . Terminal Index 5 | . . . 1 . . . . . 1 1 1 . . . . . . 1 . . Garrison Index 1 | . . . . . . . . . . . 1 . . . . . . . . . Unreport Threat 2 | . . . . . . . . . 2 . . . . . . . . . . . Locate Traps 4 | . 2 . 2 . . . . . . . . . . . . . . . . . Registered Components 2 | . . . . . . . . . . 1 1 . . . . . . . . . Zone Layout 1 | . . . 1 . . . . . . . . . . . . . . . . . EX-Prototype ID Bank 1 | . . . . . 1 . . . . . . . . . . . . . . . Fabricator Hacks 10 | . . . . . . . . . . . 2 . . . . . 4 2 2 . Load Schematic 4 | . . . . . . . . . . . 1 . . . . . 2 1 . . Build 6 | . . . . . . . . . . . 1 . . . . . 2 1 2 . Repair Station Hacks 2 | . . . 2 . . . . . . . . . . . . . . . . . Scan Component 1 | . . . 1 . . . . . . . . . . . . . . . . . Repair 1 | . . . 1 . . . . . . . . . . . . . . . . . Recycling Unit Hacks . | . . . . . . . . . . . . . . . . . . . . . Scanalyzer . | . . . . . . . . . . . . . . . . . . . . . Garrison Access Hacks 12 | . . . . . . . 1 . . 2 2 . . . . . 2 2 1 2 Unlock Access 1 | . . . . . . . 1 . . . . . . . . . . . . . Seal Access 11 | . . . . . . . . . . 2 2 . . . . . 2 2 1 2 Unauthorized Hacks 40 | . 7 . 6 . . . 1 . 4 6 3 . . . . . 6 1 3 3 Terminals 28 | . 5 . 6 . . . . . 4 5 2 . . . . . 2 1 1 2 Track 8 | . 3 . 3 . . . . . 1 1 . . . . . . . . . . Assimilate 3 | . . . . . . . . . . 1 . . . . . . 1 . . 1 Botnet 14 | . 2 . 2 . . . . . 2 2 2 . . . . . 1 1 1 1 Operators 3 | . . . 1 . . . . . 1 1 . . . . . . . . . . Fabricators 7 | . . . . . . . . . . . . . . . . . 4 . 2 1 Prioritize 3 | . . . . . . . . . . . . . . . . . 2 . 1 . Siphon 2 | . . . . . . . . . . . . . . . . . 1 . 1 . Haulers 2 | . . . . . . . . . . . . . . . . . 1 . . 1 Repair Stations . | . . . . . . . . . . . . . . . . . . . . . Recycling Units 5 | . 2 . . . . . 1 . . 1 1 . . . . . . . . . Recyclers 4 | . 1 . . . . . 1 . . 1 1 . . . . . . . . . Tunnel 1 | . 1 . . . . . . . . . . . . . . . . . . . Scanalyzers . | . . . . . . . . . . . . . . . . . . . . . Garrison Access . | . . . . . . . . . . . . . . . . . . . . . Data Cores Recovered 1 | . 1 . . . . . . . . . . . . . . . . . . . Used . | . . . . . . . . . . . . . . . . . . . . . Hacking Detections 51 | . 5 . 5 . . . 1 . 4 14 5 . . . . . 6 6 2 3 Full Trace Events 5 | . 1 . . . . . . . . . . . . . . . 2 1 . 1 Feedback Events 1 | . . . . . . . . . . . . . . . . . . . . 1 Corruption 1 | . . . . . . . . . . . . . . . . . . . . 1 Feedback Blocked . | . . . . . . . . . . . . . . . . . . . . . Robot Schematics Acquired . | . . . . . . . . . . . . . . . . . . . . . Robots Built . | . . . . . . . . . . . . . . . . . . . . . Matter . | . . . . . . . . . . . . . . . . . . . . . Time . | . . . . . . . . . . . . . . . . . . . . . Total Robot Build Rating . | . . . . . . . . . . . . . . . . . . . . . Part Schematics Acquired 8 | . . . 1 . . . . . 1 . 1 . . . 4 . . 1 . . Parts Built 9 | . . . . . . . . . . . 1 . . . . . 2 2 4 . Matter 1308 | . . . . . . . . . . . 190 . . . . . 420 212 486 . Time 494 | . . . . . . . . . . . 31 . . . . . 220 35 208 . Total Part Build Rating 60 | . . . . . . . . . . . 5 . . . . . 7 12 36 . Parts Repaired 1 | . . . 1 . . . . . . . . . . . . . . . . . Time 38 | . . . 38 . . . . . . . . . . . . . . . . . Parts Recycled . | . . . . . . . . . . . . . . . . . . . . . Recycled Matter . | . . . . . . . . . . . . . . . . . . . . . Retrieved Matter . | . . . . . . . . . . . . . . . . . . . . . Retrieved Components . | . . . . . . . . . . . . . . . . . . . . . Parts Scanalyzed . | . . . . . . . . . . . . . . . . . . . . . Part Schematics Acquired . | . . . . . . . . . . . . . . . . . . . . . Parts Damaged . | . . . . . . . . . . . . . . . . . . . . . Bothacking | -11 -10 -10 -9 -9 -9 -8 -8 -8 -8 -7 -6 -5 -5 -5 -5 -4 -4 -3 -2 -1 ------------ Run | Scr Mat Min Mat Min Exi Min Mat Gar Mat Fac Fac Fac Upp Upp Zhi Pro Fac Res Res Acc Used RIF Installer 1 | . . . . . . . . 1 . . . . . . . . . . . . Robots Hacked . | . . . . . . . . . . . . . . . . . . . . . Non-combat . | . . . . . . . . . . . . . . . . . . . . . Combat . | . . . . . . . . . . . . . . . . . . . . . Robot Hacks Applied . | . . . . . . . . . . . . . . . . . . . . . Relay Couplers Released . | . . . . . . . . . . . . . . . . . . . . . Robots Rewired 1 | . . . . . . . . . . . . 1 . . . . . . . . Allies Hacked . | . . . . . . . . . . . . . . . . . . . . . Hacks Repelled . | . . . . . . . . . . . . . . . . . . . . . Allies | -11 -10 -10 -9 -9 -9 -8 -8 -8 -8 -7 -6 -5 -5 -5 -5 -4 -4 -3 -2 -1 -------- Run | Scr Mat Min Mat Min Exi Min Mat Gar Mat Fac Fac Fac Upp Upp Zhi Pro Fac Res Res Acc Total Allies 4 | . . . . . . . . . . 1 . 1 . . . . 1 . . 1 Largest Group 2 | . . . . . . . . . . 1 1 2 2 . . . 1 . . 1 Highest-Rated Group 59 | . . . . . . . . . . 10 10 59 59 . . . 10 . . 44 Highest-Rated Ally 49 | . . . . . . . . . . 10 10 49 49 . . . 10 . . 44 Total Orders 10 | . . . . . . . . . . . 6 3 . . . . 1 . . . STAY 6 | . . . . . . . . . . . 3 2 . . . . 1 . . . FOLLOW 4 | . . . . . . . . . . . 3 1 . . . . . . . . Ally Attacks 4 | . . . . . . . . . . . . 4 . . . . . . . . Total Damage 182 | . . . . . . . . . . . . 182 . . . . . . . . Kills 1 | . . . . . . . . . . . . 1 . . . . . . . . Allies Corrupted . | . . . . . . . . . . . . . . . . . . . . . Allies Melted . | . . . . . . . . . . . . . . . . . . . . . Intel | -11 -10 -10 -9 -9 -9 -8 -8 -8 -8 -7 -6 -5 -5 -5 -5 -4 -4 -3 -2 -1 ------- Run | Scr Mat Min Mat Min Exi Min Mat Gar Mat Fac Fac Fac Upp Upp Zhi Pro Fac Res Res Acc Robot Analysis Total 9 | . . . 2 . . . . . 3 . . . . . 4 . . . . . Derelict Logs Recovered 4 | . . . . . . . . . . . . . . 2 . 2 . . . . Drone Launches . | . . . . . . . . . . . . . . . . . . . . . Drone Recoveries . | . . . . . . . . . . . . . . . . . . . . . Exploration | -11 -10 -10 -9 -9 -9 -8 -8 -8 -8 -7 -6 -5 -5 -5 -5 -4 -4 -3 -2 -1 ------------- Run | Scr Mat Min Mat Min Exi Min Mat Gar Mat Fac Fac Fac Upp Upp Zhi Pro Fac Res Res Acc Turns Passed 8197 | 71 552 361 724 211 349 94 262 219 899 1084 466 129 184 170 96 181 794 485 422 444 Spaces Moved 8163 | 29 257 211 317 105 217 47 134 125 379 660 767 161 307 313 141 316 1351 685 807 834 Core 12 | 12 . . . . . . . . . . . . . . . . . . . . Treads 2197 | 17 257 211 317 105 217 47 134 125 379 388 . . . . . . . . . . Legs 272 | . . . . . . . . . . 272 . . . . . . . . . . Wheels . | . . . . . . . . . . . . . . . . . . . . . Hover 5682 | . . . . . . . . . . . 767 161 307 313 141 316 1351 685 807 834 Flight . | . . . . . . . . . . . . . . . . . . . . . Fastest Speed 36 | 50 160 160 160 160 160 160 160 163 158 127 40 53 53 53 53 53 38 44 36 38 Average Speed 78 | 114 160 160 160 160 160 160 160 163 160 142 45 53 53 53 53 53 42 45 41 38 Slowest Speed 183 | 160 180 160 160 160 160 160 163 163 183 161 105 53 53 53 53 53 98 46 46 38 Overloaded Moves . | . . . . . . . . . . . . . . . . . . . . . Propulsion Burnouts . | . . . . . . . . . . . . . . . . . . . . . Robots Hopped . | . . . . . . . . . . . . . . . . . . . . . Cave-ins Triggered . | . . . . . . . . . . . . . . . . . . . . . Exploration Rate (%) 37 | 3 66 38 37 31 60 17 17 37 41 32 22 5 57 59 61 79 34 30 29 30 Regions Visited 20 Branch Regions 8 Pre-discovered Areas 4 | . 1 . . . . . . . . . . . . . 3 . . . . . Known Exits Taken 9 | . 1 . . . . . 1 . . . . 1 1 1 1 1 . 1 1 . Unknown Exits Taken 10 | 1 . 1 1 1 1 1 . . 1 1 1 . . . . . 1 . . . Scrap Searched 5 | . . . . . . 1 . . . . . . 1 2 . 1 . . . . Spaces Dug 154 | . 1 1 7 . . . 2 . 14 14 8 3 2 . . . 35 19 12 36 Terrain Destroyed 367 | 8 30 8 44 7 . 40 14 . 84 14 8 3 2 . . . 36 19 13 37 Melee 75 | . . . . . . . 2 . 14 14 8 3 2 . . . 23 8 . 1 Projectile 82 | . 1 1 7 . . . . . . . . . . . . . 13 11 13 36 AOE 210 | 8 29 7 37 7 . 40 12 . 70 . . . . . . . . . . . Terrain Rammed . | . . . . . . . . . . . . . . . . . . . . . Walls Destroyed . | . . . . . . . . . . . . . . . . . . . . . Machines Disabled . | . . . . . . . . . . . . . . . . . . . . . Actions | -11 -10 -10 -9 -9 -9 -8 -8 -8 -8 -7 -6 -5 -5 -5 -5 -4 -4 -3 -2 -1 --------- Run | Scr Mat Min Mat Min Exi Min Mat Gar Mat Fac Fac Fac Upp Upp Zhi Pro Fac Res Res Acc Total 9307 | 49 325 228 439 124 219 57 168 134 537 766 851 199 319 315 165 324 1497 792 878 921 Wait 112 | . . . 1 . . . . 3 6 8 2 17 4 . 1 . 19 28 7 16 Move 8141 | 28 256 210 316 104 216 46 133 123 378 659 766 160 306 312 140 315 1350 684 806 833 Hop . | . . . . . . . . . . . . . . . . . . . . . Pick Up 128 | 6 10 3 15 . 1 . 10 . 12 10 12 4 . 1 6 . 17 4 12 5 Fast Attach 67 | 4 5 2 7 . . . . . 3 16 5 1 . . 6 . 4 8 3 3 Attach 58 | 3 2 . 9 . 1 . 3 . 5 3 6 2 . . 1 . 10 2 6 5 Detach 23 | . . . 5 . . . . . 1 2 2 . . . . . 4 3 5 1 Swap 213 | . 9 5 18 7 . 6 8 5 40 15 15 4 5 2 1 9 26 15 16 7 Drop 151 | . 6 4 18 . 1 . 6 . 14 27 18 3 . . 10 . 16 7 9 12 Fire 263 | 8 36 2 48 11 . 5 6 2 62 8 . . . . . . 13 12 14 36 Melee 139 | . . . . . . . 2 1 16 17 25 4 4 . . . 38 29 . 3 Ram . | . . . . . . . . . . . . . . . . . . . . . Kick . | . . . . . . . . . . . . . . . . . . . . . Crush 8 | . 1 2 2 2 . . . . . 1 . . . . . . . . . . Escape Stasis . | . . . . . . . . . . . . . . . . . . . . . Rewire 4 | . . . . . . . . . . . . 4 . . . . . . . . Trap . | . . . . . . . . . . . . . . . . . . . . . Miscellaneous . | . . . . . . . . . . . . . . . . . . . . . Route ------- -11/Scrapyard -10/Materials (discovered 4 exits: *Mat x3 / *Min) -10/Mines -9/Materials (discovered 3 exits: *Mat / [*Min x2]) -9/Mines (discovered 2 exits: *Mat / *Exi) -9/Exiles -8/Mines -8/Materials -8/Garrison -8/Materials (discovered 3 exits: *Fac / Sto x2) -7/Factory (discovered 3 exits: *Fac / Low x2) -6/Factory (discovered 3 exits: [*Fac] / *Low x2) -5/Factory -5/Upper Caves -5/Upper Caves -5/Zhirov -4/Proximity Caves -4/Factory (discovered 2 exits: *Res / [*Ext]) -3/Research (discovered 5 exits: *Res x3 / Arm / *Tes) -2/Research (discovered 4 exits: *Acc x3 / [Qua]) -1/Access To Epsilon Eridani History --------- Turn | Location | Event 8 | -11/Scrapyard | Discovered new exit (range 16) 72 | -11/Scrapyard | Entered Materials 104 | -10/Materials | Identified exit to Mines 263 | -10/Materials | Discovered new exit (range 5) 304 | -10/Materials | Build established: Mutant 430 | -10/Materials | Discovered new exit (range 13) 513 | -10/Materials | Discovered new exit (range 15) 624 | -10/Materials | Entered Mines 779 | -10/Mines | Assembled infested the area 919 | -10/Mines | Met a Derelict who couldn't figure out how to use a Trap Extractor 976 | -10/Mines | Discovered new exit (range 7) 985 | -10/Mines | Entered Materials 985 | -9/Materials | Evolved 2 slots: Propulsion x1, Utility x1 1128 | -9/Materials | Discovered new exit (range 6) 1369 | -9/Materials | Build established: Scavenger-Mutant 1376 | -9/Materials | Discovered new exit (range 11) 1457 | -9/Materials | Discovered new exit (range 3) 1514 | -9/Materials | Central database locked down 1538 | -9/Materials | Repaired Adv. Terrain Scanner 1709 | -9/Materials | Entered Mines 1723 | -9/Mines | Met a Derelict bent on vengeance 1811 | -9/Mines | Discovered new exit (range 12) 1913 | -9/Mines | Deemed a non-threat by the Exiles lab entrance 1913 | -9/Mines | Discovered new exit (range 5) 1920 | -9/Mines | Entered Exiles 1960 | -9/Exiles | Met 8R-AWN 1988 | -9/Exiles | Met EX-HEX 2031 | -9/Exiles | Met EX-BIN 2048 | -9/Exiles | Aligned with FarCom system 2050 | -9/Exiles | Given EX-Vault access code 2087 | -9/Exiles | Opened EX-Vault 2096 | -9/Exiles | Found Trap Reconfigurator 2128 | -9/Exiles | Warned to stay clear of 0b10 Research branches 2174 | -9/Exiles | Met EX-DEC 2256 | -9/Exiles | Discovered new exit (range 10) 2269 | -9/Exiles | Left Exiles lab with Trap Reconfigurator 2269 | -9/Exiles | Entered Mines 2356 | -8/Mines | Discovered new exit (range 5) 2363 | -8/Mines | Entered Materials 2363 | -8/Materials | Evolved 2 slots: Utility x2 2622 | -8/Materials | Identified exit to Garrison 2625 | -8/Materials | Entered Garrison 2663 | -8/Garrison | Triggered checkpoint 2799 | -8/Garrison | Discovered new exit (range 20) 2836 | -8/Garrison | Installed Relay Interface Framework 2844 | -8/Garrison | Entered Materials 3030 | -8/Materials | Discovered new exit (range 15) 3190 | -8/Materials | Identified exit to Storage 3634 | -8/Materials | Discovered new exit (range 19) 3743 | -8/Materials | Entered Factory 3743 | -7/Factory | Evolved 2 slots: Propulsion x1, Utility x1 4237 | -7/Factory | Identified exit to Lower Caves 4501 | -7/Factory | Build established: Hauler-Assassin 4739 | -7/Factory | Discovered new exit (range 20) 4827 | -7/Factory | Entered another Factory area 4827 | -6/Factory | Accompanied by 1 ally 4827 | -6/Factory | Evolved 2 slots: Power x1, Utility x1 5036 | -6/Factory | Discovered new exit (range 16) 5158 | -6/Factory | Discovered new exit (range 9) 5209 | -6/Factory | Identified exit to Lower Caves 5258 | -6/Factory | Fabricated Triangulator (x1) 5293 | -6/Factory | Entered another Factory area 5293 | -5/Factory | Accompanied by 1 ally 5293 | -5/Factory | Evolved 2 slots: Utility x2 5334 | -5/Factory | Discovered new exit (range 18) 5397 | -5/Factory | Identified exit to Upper Caves 5422 | -5/Factory | Entered Upper Caves 5422 | -5/Upper Caves | Accompanied by 2 allies 5441 | -5/Upper Caves | Encountered a Warlord checkpoint 5592 | -5/Upper Caves | Discovered new exit (range 20) 5606 | -5/Upper Caves | Identified exit to Upper Caves 5606 | -5/Upper Caves | Entered another Upper Caves area 5734 | -5/Upper Caves | Attracted the attention of an 0b10 outpost 5745 | -5/Upper Caves | Discovered new exit (range 11) 5764 | -5/Upper Caves | Learned Factory stockpile data 5775 | -5/Upper Caves | Identified exit to Zhirov 5776 | -5/Upper Caves | Entered Zhirov 5776 | -5/Zhirov | Discovered new exit (range 4) 5798 | -5/Zhirov | Found Alien Artifact 5798 | -5/Zhirov | Identified Integrated Dissipator 5798 | -5/Zhirov | Installed Integrated Dissipator, increased core heat dissipation (+20) 5849 | -5/Zhirov | Learned location of Quarantine (-2) 5849 | -5/Zhirov | Learned location of Testing (-3) 5849 | -5/Zhirov | Learned location of Command (-1) 5872 | -5/Zhirov | Identified exit to Proximity Caves 5872 | -5/Zhirov | Entered Proximity Caves 5885 | -4/Proximity Caves | Learned Research stockpile data 5887 | -4/Proximity Caves | Attracted the attention of an 0b10 outpost 5896 | -4/Proximity Caves | Learned 8 Research zone layouts 6001 | -4/Proximity Caves | Spotted B-86 Titan 6019 | -4/Proximity Caves | Attracted the attention of an 0b10 checkpoint 6045 | -4/Proximity Caves | Discovered new exit (range 17) 6052 | -4/Proximity Caves | Identified exit to Factory 6053 | -4/Proximity Caves | Entered Factory 6053 | -4/Factory | Evolved 2 slots: Propulsion x1, Utility x1 6205 | -4/Factory | Discovered new exit (range 21) 6274 | -4/Factory | Fabricated Lrg. Storage Unit? 6367 | -4/Factory | Fabricated Exp. Optical Array? 6453 | -4/Factory | Local fabrication network quarantined 6553 | -4/Factory | First assault squad dispatched 6846 | -4/Factory | Discovered new exit (range 4) 6847 | -4/Factory | Entered Research 6847 | -3/Research | Evolved 2 slots: Power x1, Utility x1 6848 | -3/Research | Identified exit to Armory 6849 | -3/Research | Identified exit to Testing 7042 | -3/Research | Found Prototype Processor 7042 | -3/Research | Identified Spectral Analyzer 7045 | -3/Research | Found Spectral Analyzer 7224 | -3/Research | Identified exit to Research 7287 | -3/Research | Fabricated Mic. Fission Core (x2) 7288 | -3/Research | Build established: Infiltrator-Ninja 7332 | -3/Research | Entered another Research area 7332 | -2/Research | Evolved 2 slots: Utility x2 7358 | -2/Research | Found Prototype Processor 7358 | -2/Research | Identified Exp. Signal Interpreter 7522 | -2/Research | Discovered new exit (range 19) 7527 | -2/Research | Identified exit to Access 7582 | -2/Research | Fabricated Cmb. Linear Gravjet (x2) 7652 | -2/Research | Fabricated Cmb. Linear Gravjet (x2) 7729 | -2/Research | Build established: Hacker-Ninja 7754 | -2/Research | Entered Access 7754 | -1/Access | Evolved 2 slots: Utility x2 7974 | -1/Access | Found Prototype Slashing Weapon 7974 | -1/Access | Identified Centrium Greatsword 7992 | -1/Access | Spotted B-99 Colossus 8197 | -1/Access | Discovered new exit (range 5) 8198 | *** | Escaped! Last Messages --------------- 08122_ Connecting with Terminal... Feedback: System corruption (+1%). 08122_ ALERT: Suspicious activity at Terminal A016. Dispatching Investigation squad. 08143_ Detecting nearby Garrison Access. 08150_ Connecting with Garrison Access... >>Seal Access door sealed. 08154_ ALERT: Rogue bot located, Programmers report to Access Zone 1G. 08179_ Connecting with Terminal... >>Trojan(Assimilate) Trojan loaded successfully. Testing... System interface override in place. 08184_ O-32 Director: "IFF HANDSHAKE FAILED. SECURING TERMINAL." 08195_ Connecting with Terminal... >>Open Sealed Barrier opened. 08197_ The Access Shell folds into the floor. 08197_ EXIT=FOUND Map ----- +----------------------------------------------------+ | #??## ###########??###### # # ?" | | ##?## ?###########?###############"##########+### | | ##??# ##?##??#####?########?##??# #???? ? | | ?##?# #?##?#######??#####?#??##?# #? ? | | ?? ? ? ###??####?##?#?#?#### " # ? ? | | ? ? ? ? ?##??#??###??######## ! """ + ?? ? | | ##?######## ######?#####????#?#?# """ #?? ? | | #? + #?########??##??##### " # ? ?? | | #? # ?##?#####?#??????#??# # ? ?? | | #"" # ##?######?########?##] #?????" | | #"" # ?#?#???#?###?#?#?#?############? ??? | | "G # ###?####?##?####?####??###?#### ????" | | #"" # ??#######?######?########????"?? ??"" | | #"" [[ # #??##???####?####?#?##?#??#???? ? ? | | #? [[ # #####???#??#??####?##???#???"?????? ? | | ## [ # ?##????#?#?#########???#?#?#?"? ?? ? | | ##### ##### ##??#?#?##?#?##########????#?"???? ?? | | #?######?## #?####?#?##?#?#?##????#????#????????? | | #?#?####### ###?#?###???#?#?#####?????????#? ? ?? | | ?####???### ####### ##########?#??#?????????????? | | ###?####?## """T""" "??"? ? ?##? ? ?? | | ?#?#??###?# """ """ """"?BB??? ??? ????? | | ###?####### """" BB? ?????? ? ?# | | ?##???#???# ""?" ?? ???????????? | | ###?###?### "" "???????? ?? ??????# | | #??#?#?#### @" "????? ? ??????????? | | ?###??##### ""??? ?? ?????????? | | ###?####### ""?"?BB ? ?????????? | | ?########## "??? BB????????????? | | #?#???#??## "?"? ? ??????????? | | ?########## ####### ################?#??#???????? | | ###?#?#?#?# ##??#####?????#???###??##???????????? | | ########### ##########?#?#####??###??#??????????? | | ## # # ##?#??#?#?##??#????????????? | | ## ! # # ##?#??###?#???##???????????? | | ## + + "" #?####?#?#???#?????????????? | | + # # """ #?###?#??#?###?????????????? | | ## + # "T ###?###???#?#???#??????????? | | ?# # # """ ##???#?#??##???????????????? | | ## # # "" #?#??#???#?##??????????????? | | ## # # #???#?##??#?##???##????????? | | ?# # # ######???#?????????????????? | | ########### ###########?#?#?###????#??#?????????? | | ??##???#?## #?????##????####??#??#???#??????????? | | ##?# ?? ###?###?#???#???#?????#?????????????? | | ?A?? ? ? ##?#??#?????????#???????????????????? | | #?????###?####?##???#???#????#???????????????????? | | ? ??? ?##????#???#???#?????##???#???#??????????? | | ????? ?????#?#??????#?#?#?????#???????????????? | | ?? ??? ?####?##????????#??#??????#?????????????? | +----------------------------------------------------+ Best States ------------- Heat Dissipation 72 Energy Generation 58 Energy Capacity 595 Matter Stores 300 Matter Capacity 300 Sight Range 24 Robot Scan Range 20 Terrain Scan Range 24 Terrain Scan Density 210 ECM Strength 3 Jamming Range 16 Cloak Strength 2 Armor Coverage 225 Utility Shielding 90 Weapon Cycling 15 Melee Speed Boost 20 Evasion (%) 69 Melee Accuracy 8 Recoil Reduction 4 Particle Charging 30 Offensive Hacking 24 Defensive Hacking 10 Item Schematics ----------------- Lrg. Storage Unit | -9/Materials | Hacked Imp. Propulsion Shielding | -8/Materials | Hacked Triangulator | -6/Factory | Hacked Assault Drone Bay | -5/Zhirov | Free Exp. Heat Sink | -5/Zhirov | Free Exp. Optical Array | -5/Zhirov | Free Imp. Arc Thrower | -5/Zhirov | Free Mic. Fission Core | -3/Research | Hacked Robot Schematics ------------------ None Fabricated ------------ Triangulator | x1 | -6/Factory Lrg. Storage Unit | x1 | -4/Factory Exp. Optical Array | x1 | -4/Factory Mic. Fission Core | x2 | -3/Research Cmb. Linear Gravjet | x2 | -2/Research | Preloaded Cmb. Linear Gravjet | x2 | -2/Research | Preloaded Alien Tech Used ----------------- Integrated Dissipator Achievements -------------- None Challenges ------------ None Game ------ Seed LaserCentriumMinigun Manual? 0 Play Time 03:26:34 Cumulative 450.3 hours Start 2021.12.27 @ 23:50:51 End 2021.12.28 @ 19:56:48 Sessions 17 Manual Loads 0 Difficulty Rogue Special Mode None Game No. 218 Rogue 93 Adventurer 123 Explorer 2 Win Type 0 Total 38 Types 32/3/1/0/1/0/0/0/1 Lore% 59 Gallery% 84 Achievement% 62 Wizard Run 0 Options --------- ASCII 0 Keyboard 1 Movement Numpad Keybinds 0 Fullscreen 1 Font 36/TerminusFine Map View 76x50 Tactical HUD 1 Map Filters NONE Filters NONE Steam 1 RUN: cd1d219f-c4c8-4d75-acbc-cfabb2bc586f